[Event "Swietokrzyskie GM Chess-ch 2022"]
[Site "Zagnansk"]
[Date "2022.05.02"]
[Round "4.3"]
[White "Budisavljevic, GM Luka"]
[Black "Samunenkov, FM Ihor"]
[Result "1/2-1/2"]
[ECO "B13"]
[WhiteElo "2509"]
[BlackElo "2372"]
[Annotator "TA"]
[PlyCount "131"]
[EventDate "2022.04.29"]
[EventCountry "POL"]
[SourceTitle "playchess.com"]
[Source "ChessBase"]
[SourceQuality "1"]
[TimeControl "40/5400+30:1800+30"]

{[%evp 11,131,21,16,32,27,0,51,40,41,28,27,27,25,21,29,0,0,-6,0,-10,-9,-13,0,0,0,2,0,5,4,0,5,-30,-29,-40,38,17,29,24,26,24,25,21,23,19,19,19,19,21,30,19,20,19,31,19,19,19,19,19,19,25,26,26,39,26,26,26,26,27,27,16,27,12,22,20,20,20,49,0,31,20,23,20,21,14,35,22,22,22,22,24,27,0,25,25,33,25,27,0,9,0,0,-27,0,0,0,0,11,4,29,22,28,8,10,0,22,7,33,8,19,27,28,0]} 1. e4 {[%emt 0:00:03]} c6 {[%emt 0:01:41]} 2. d4 {[%emt 0:00:10]} d5 {[%emt 0:00:09]} 3. exd5 {[%emt 0:00:12]} cxd5 {[%emt 0:00:15]} 4. Bd3 {[%emt 0:00:05]} Nf6 {[%emt 0:03:12]} 5. c3 {[%emt 0:00:11]} Bg4 {[%emt 0:01:14]} 6. Qb3 {[%emt 0:01:08]} Qc7 {[%emt 0:01:17]} 7. h3 {[%emt 0:01:24] B13: Caro-Kann: Exchange Variation and Panov-Botvinnik Attack.} Bd7 {[%emt 0:08:27]} 8. Ne2 {[%emt 0:05:40]} Bc6 {[%emt 0:04:31]} (8... Nc6 $1 $11) 9. Bf4 $14 {[%emt 0:01:29] [#] White is slightly better.} Qd8 $146 {[%emt 0:01:29]} ({Predecessor:} 9... Qd7 10. Qd1 Bb5 11. Bc2 e6 12. O-O Bd6 13. Bxd6 Qxd6 14. Re1 Bxe2 15. Qxe2 Nc6 {0-1 (57) Sarakauskas,G (2449)-Pantsulaia,L (2617) Plovdiv 2008}) 10. Na3 {[%emt 0:10:55][%cal Bb1a3,Ba3c2,Bc2e3][%mdl 32]} a6 {[%emt 0:04:15]} 11. Nc2 {[%emt 0:10:39]} e6 {[%emt 0:02:59]} 12. Ne3 {[%emt 0:02:47]} Bd6 {[%emt 0:02:32]} 13. Bg5 {[%emt 0:01:53]} Nbd7 {[%emt 0:03:50][%cal Bb8d7,Bd7f6,Bf6e4][%mdl 32]} 14. Ng4 {[%emt 0:01:35]} Qc7 {[%emt 0:03:41]} 15. Nxf6+ {[%emt 0:02:49]} Nxf6 {[%emt 0:03:26]} 16. O-O {[%emt 0:11:13]} Ne4 {[%emt 0:09:52]} 17. Be3 {[%emt 0:01:07]} b5 {[%emt 0:00:57]} 18. Qc2 {[%emt 0:00:56]} O-O {[%emt 0:07:05]} 19. f3 {[%emt 0:16:50]} Nf6 {[%emt 0:01:29]} 20. Bg5 {[%emt 0:00:41]} Kh8 {[%emt 0:12:16]} 21. Bxf6 {[%emt 0:09:42]} gxf6 {[%emt 0:00:11]} 22. g4 {[%emt 0:01:12]} Bf4 {[%emt 0:05:27] Against Qd2} (22... f5 $15) 23. Kh1 {[%emt 0:01:24]} h6 {[%emt 0:01:15]} 24. Nxf4 {[%emt 0:05:59]} Qxf4 {[%emt 0:00:07]} 25. Qc1 {[%emt 0:00:09]} Qxc1 {[%emt 0:02:51]} 26. Rfxc1 {[%emt 0:00:01]} Rfb8 {[%emt 0:03:29]} 27. Kg2 {[%emt 0:00:48]} Kg7 {[%emt 0:00:11]} 28. Kf2 {[%emt 0:00:22]} Kf8 {[%emt 0:00:37]} 29. a3 {[%emt 0:00:56]} Ke7 {[%emt 0:00:59]} 30. f4 {[%emt 0:00:31]} a5 {[%emt 0:02:14]} 31. Ke3 {[%emt 0:02:09]} Kd6 {[%emt 0:02:22]} 32. b3 {[%emt 0:02:46]} Rc8 {[%emt 0:02:30]} 33. Kd2 {[%emt 0:01:33]} Rab8 34. Rf1 {[%emt 0:01:47]} Rh8 {[%emt 0:04:10]} 35. Be2 {[%emt 0:01:10]} Rbc8 {[%emt 0:01:33]} 36. Rg1 {[%emt 0:02:55]} Rcg8 {[%emt 0:00:53]} 37. Bf3 {[%emt 0:01:13]} Rc8 {[%emt 0:01:37]} 38. Rac1 {[%emt 0:01:05]} Bd7 {[%emt 0:01:32]} 39. Be2 {[%emt 0:01:01]} Rb8 {[%emt 0:01:23]} 40. Rg3 {[%emt 0:00:00]} Rhg8 {[%emt 0:00:00]} 41. Rcg1 {[%emt 0:16:34]} Rg7 {[%emt 0:21:12]} 42. R3g2 {[%emt 0:03:03]} Rbg8 {[%emt 0:02:34]} 43. Bf3 {[%emt 0:00:47]} Bc6 {[%emt 0:01:43]} 44. Re1 {[%emt 0:02:08]} (44. h4 $14) 44... Re8 {[%emt 0:02:22]} 45. Rge2 {[%emt 0:00:53]} Rgg8 {[%emt 0:00:20]} 46. Re3 {[%emt 0:00:27]} Bd7 {[%emt 0:02:13]} 47. Be2 {[%emt 0:02:01]} Bc6 {[%emt 0:00:27]} 48. Bd1 {[%emt 0:00:42]} Bd7 {[%emt 0:00:33]} 49. Bf3 {[%emt 0:00:06]} Bc6 {[%emt 0:00:27]} 50. Rc1 {[%emt 0:03:45]} Rc8 {[%emt 0:00:50]} 51. Rce1 {[%emt 0:00:31]} Rce8 {[%emt 0:00:50]} 52. Rf1 {[%emt 0:00:01]} Bd7 {[%emt 0:00:35]} 53. Rf2 {[%emt 0:02:06]} (53. Ree1 {is interesting.} f5 54. b4 Ra8 55. Kd3) 53... Bc6 {[%emt 0:00:19]} 54. Bg2 {[%emt 0:01:38]} Bd7 {[%emt 0:01:02]} 55. Rd3 {[%emt 0:01:01]} Rc8 {[%emt 0:01:40]} 56. Kd1 {[%emt 0:01:08]} Rce8 {[%emt 0:01:02]} (56... b4 $5) 57. Re3 {[%emt 0:00:43]} Rc8 {[%emt 0:00:34]} 58. Bf1 {[%emt 0:00:49]} Rcd8 {[%emt 0:01:01]} 59. Kd2 {[%emt 0:00:06]} Bc6 {[%emt 0:00:22]} 60. Bd3 {[%emt 0:00:49]} Rc8 {[%emt 0:00:23]} 61. Rfe2 {[%emt 0:00:14]} Rce8 {[%emt 0:00:13]} 62. Rf2 {[%emt 0:00:16]} Rc8 {[%emt 0:00:11]} 63. Rf1 {[%emt 0:00:01]} Rcd8 {[%emt 0:00:52]} 64. Rfe1 {[%emt 0:00:18]} Rde8 {[%emt 0:00:13]} 65. Be2 {[%emt 0:00:32]} Rgf8 {[%emt 0:00:31]} 66. Bf3 {[%emt 0:00:19] Weighted Error Value: White=0.08 (flawless) /Black=0.09 (flawless)} 1/2-1/2

[Event "Swietokrzyskie GM Chess-ch 2022"]
[Site "Zagnansk"]
[Date "2022.05.02"]
[Round "4.5"]
[White "Pacan-Milej, FM Kosma"]
[Black "Fus, FM Jakub"]
[Result "1-0"]
[ECO "A13"]
[WhiteElo "2404"]
[BlackElo "2377"]
[Annotator "TA"]
[PlyCount "97"]
[EventDate "2022.04.29"]
[EventCountry "POL"]
[SourceTitle "playchess.com"]
[Source "ChessBase"]
[SourceQuality "1"]
[TimeControl "40/5400+30:1800+30"]

{[%evp 9,97,17,16,15,20,12,13,14,10,10,7,13,13,7,13,17,0,-7,27,28,24,31,61,55,40,52,54,52,54,14,43,43,43,43,39,43,39,33,62,52,80,86,166,141,164,150,163,175,182,120,143,128,139,129,130,116,143,114,216,200,215,206,254,255,257,264,245,247,252,241,318,310,312,266,376,368,411,392,401,401,463,381,356,338,414,407,383,299,342,338]} 1. c4 {[%emt 0:00:04]} Nf6 {[%emt 0:00:17]} 2. Nf3 {[%emt 0:00:28]} e6 {[%emt 0:00:20]} 3. g3 {[%emt 0:00:16]} d5 {[%emt 0:00:08]} 4. Bg2 {[%emt 0:00:10]} dxc4 {[%emt 0:02:10]} 5. Qa4+ {[%emt 0:00:11]} Bd7 {[%emt 0:00:08]} 6. Qxc4 {[%emt 0:00:13] A13: English Opening: 1...e6.} c5 {[%emt 0:00:11]} 7. Ne5 {[%emt 0:00:43]} Qc8 {[%emt 0:00:39]} 8. O-O {[%emt 0:00:55] The position is equal.} Nc6 {[%emt 0:01:17]} 9. Nxd7 {[%emt 0:00:11]} Qxd7 {[%emt 0:00:23]} 10. Nc3 {[%emt 0:02:03]} Rc8 {[%emt 0:00:36]} 11. d3 {[%emt 0:07:15]} Nd4 {[%emt 0:09:19] White must now prevent ...b5.} 12. a4 {[%emt 0:00:24] Against b5} Be7 {[%emt 0:00:40]} 13. Bg5 {[%emt 0:16:30]} O-O {[%emt 0:08:33]} (13... Ng4 $5 {[%cal Re7g5]} 14. Bf4 g5 $11) 14. e3 {[%emt 0:05:01] [#] Hoping for Bxf6.} Rfd8 $146 {[%emt 0:06:02]} ({Predecessor:} 14... Nc6 15. Bxf6 Bxf6 16. Ne4 Bxb2 17. Rab1 Na5 18. Nxc5 Qd6 19. Qb4 Bc3 20. Qxc3 Rxc5 {1-0 (58) McShane,L (2661)-Idani,P (2604) Astana 2019}) 15. Rfd1 {[%emt 0:10:49]} Nc6 {[%emt 0:06:55]} 16. Bxf6 {[%emt 0:08:21]} gxf6 {[%emt 0:00:31]} 17. Qg4+ {[%emt 0:00:25]} Kh8 {[%emt 0:00:59]} 18. Qh5 {[%emt 0:00:23]} Qe8 {[%emt 0:05:39]} 19. Bxc6 {[%emt 0:20:29]} Rxc6 {[%emt 0:02:30]} 20. d4 {[%emt 0:00:12]} cxd4 {[%emt 0:28:10]} 21. exd4 {[%emt 0:00:06]} a6 {[%emt 0:08:29]} 22. d5 {[%emt 0:04:53]} Rcd6 {[%emt 0:00:10]} 23. Qf3 {[%emt 0:07:18]} b6 {[%emt 0:06:07]} 24. Qe2 {[%emt 0:06:33]} exd5 {[%emt 0:06:17]} 25. Qxa6 {[%emt 0:00:09]} Qd7 {[%emt 0:00:36]} (25... f5 $16) 26. Nb5 $18 {[%emt 0:01:46]} Rc6 {[%emt 0:01:06]} 27. Nd4 {[%emt 0:00:28]} Rc4 {[%emt 0:00:10]} 28. b3 {[%emt 0:01:51]} Rb4 {[%emt 0:01:41]} 29. Rac1 {[%emt 0:00:40]} ({White should try} 29. Qd3 $18) 29... Re8 {[%emt 0:01:01]} (29... Bc5 $2 {[#]} 30. Rxc5 $1 {[%mdl 512]} Re8 31. Rc3 $18) 30. a5 {[%emt 0:02:26] White is more active.} bxa5 {[%emt 0:01:09]} 31. Qxa5 {[%emt 0:00:26]} Bf8 {[%emt 0:00:29]} 32. Rd3 {[%emt 0:01:39][%cal Bd1d3,Bd3d5,Bd5d7][%mdl 32]} Rbb8 {[%emt 0:02:49]} 33. Qa6 {[%emt 0:01:48]} Re4 {[%emt 0:00:27]} (33... Qe7 $16 {was worth a try.}) 34. Qxf6+ {[%emt 0:00:53]} Bg7 {[%emt 0:00:02] [#]} 35. Qf5 {[%emt 0:00:14]} Qe8 {[%emt 0:00:41]} (35... Qxf5 36. Nxf5) 36. Nf3 {[%emt 0:00:20] Strongly threatening Ng5.} ({Stronger than} 36. Qxd5 Rd8 37. Qf5 Rexd4 38. Rxd4 Bxd4 $17) 36... h6 {[%emt 0:01:07] Prevents Ng5.} 37. Rxd5 {[%emt 0:00:27]} Qe6 {[%emt 0:00:38]} 38. Rc7 {[%emt 0:00:46]} Kg8 {[%emt 0:00:31]} 39. Kg2 {[%emt 0:01:24]} Rf8 {[%emt 0:00:31]} 40. Qxe6 {[%emt 0:00:00]} Rxe6 {[%emt 0:00:00]} 41. Rdd7 Re2 {[%emt 0:16:16]} (41... Ree8 {might work better.} 42. Rb7 Bf6) 42. Nh4 {[%emt 0:18:24]} Be5 {[%emt 0:03:13]} 43. Rb7 {[%emt 0:00:28]} Bc3 {[%emt 0:02:17]} 44. Nf5 {[%emt 0:02:53]} Re6 {[%emt 0:00:03]} 45. Rd6 {[%emt 0:01:07]} Rxd6 {[%emt 0:01:04]} 46. Nxd6 {[%emt 0:00:03]} f5 {[%emt 0:00:20]} 47. Rb5 {[%emt 0:03:27]} f4 {[%emt 0:00:15]} 48. Rf5 {[%emt 0:00:19]} Rd8 {[%emt 0:01:43]} 49. Ne4 {[%emt 0:00:25] Weighted Error Value: White=0.09 (flawless) /Black=0.19 (very precise)} 1-0

[Event "Swietokrzyskie GM Chess-ch 2022"]
[Site "Zagnansk"]
[Date "2022.05.03"]
[Round "5.1"]
[White "Fus, FM Jakub"]
[Black "Kowalski, IM Igor"]
[Result "1/2-1/2"]
[ECO "D19"]
[WhiteElo "2377"]
[BlackElo "2370"]
[Annotator "TA"]
[PlyCount "63"]
[EventDate "2022.04.29"]
[EventCountry "POL"]
[SourceTitle "playchess.com"]
[Source "ChessBase"]
[SourceQuality "1"]
[TimeControl "40/5400+30:1800+30"]

{[%evp 23,63,26,34,25,31,28,42,47,47,48,93,81,72,88,76,70,59,39,53,53,46,41,37,43,38,34,35,31,38,32,87,0,0,0,0,0,0,0,0,0,4,0]} 1. d4 {[%emt 0:00:04]} d5 {[%emt 0:00:03]} 2. c4 {[%emt 0:00:17]} c6 {[%emt 0:00:03]} 3. Nf3 {[%emt 0:00:19]} Nf6 {[%emt 0:00:04]} 4. Nc3 {[%emt 0:00:08]} dxc4 {[%emt 0:00:04]} 5. a4 {[%emt 0:00:55]} Bf5 {[%emt 0:00:05]} 6. e3 {[%emt 0:00:41]} e6 {[%emt 0:00:04]} 7. Bxc4 {[%emt 0:00:12]} Bb4 {[%emt 0:00:14]} 8. O-O {[%emt 0:00:45]} O-O {[%emt 0:00:06]} 9. Qe2 {[%emt 0:00:28]} Bg6 {[%emt 0:00:05]} 10. Ne5 {[%emt 0:02:34]} Nbd7 {[%emt 0:00:15]} 11. Nxg6 {[%emt 0:01:22]} hxg6 {[%emt 0:00:05]} 12. Rd1 {[%emt 0:03:38]} Qe7 {[%emt 0:13:25] 12...Qc7 is setting a new trend.} 13. e4 {[%emt 0:30:13] D19: Slav Defence: 5 a4 Bf5 6 e3: Main line with 9 Qe2.} e5 {[%emt 0:01:36]} 14. d5 {[%emt 0:00:42]} cxd5 {[%emt 0:12:39]} 15. Nxd5 {[%emt 0:02:41] White is slightly better.} Nxd5 {[%emt 0:00:06]} 16. Bxd5 {[%emt 0:00:05]} Nb6 {[%emt 0:00:23]} 17. Bb3 {[%emt 0:11:07] White is more active.} Rad8 {[%emt 0:12:40]} 18. Be3 {[%emt 0:06:01] [#]} Bc5 $146 {[%emt 0:02:46]} ({Predecessor:} 18... Rxd1+ 19. Rxd1 Rd8 20. Rxd8+ Qxd8 21. Qb5 Qe7 22. a5 Nc8 23. Bd5 b6 24. Qc4 Bc5 25. axb6 axb6 {½-½ (51) Perdomo,L (2461)-Espineira Gonzalez,D (2339) Peniche 2021}) 19. Bxc5 {[%emt 0:08:00]} Qxc5 {[%emt 0:01:44]} 20. a5 {[%emt 0:00:09]} Rxd1+ {[%emt 0:03:33]} 21. Qxd1 {[%emt 0:00:07]} Nc8 {[%emt 0:00:04]} 22. Qd5 {[%emt 0:06:20]} Qb4 {[%emt 0:17:55]} 23. g3 {[%emt 0:02:54]} Ne7 {[%emt 0:08:17]} 24. Qc4 {[%emt 0:01:08]} Qxc4 {[%emt 0:01:25]} 25. Bxc4 $14 {[%emt 0:00:04][%mdl 4096] Endgame KRB-KRN} Rd8 {[%emt 0:00:03] Against Rd1} 26. a6 {[%emt 0:10:38]} b6 {[%emt 0:00:59]} (26... bxa6 $1 $14 27. Rxa6 Rd4) 27. Rc1 {[%emt 0:00:05]} (27. f4 $16) 27... Rc8 $1 $11 {[%emt 0:05:15][%cal Ob6b5] [#] Threatens to win with ...b5! The position is equal.} 28. Rc3 {[%emt 0:00:07]} g5 {[%emt 0:00:40]} 29. Kf1 {[%emt 0:04:31]} g6 {[%emt 0:02:01]} 30. Ke1 {[%emt 0:00:53]} Kg7 {[%emt 0:00:11]} 31. Kd2 {[%emt 0:00:46]} f5 {[%emt 0:01:00]} 32. Bd3 {[%emt 0:05:57] Weighted Error Value: White=0.06 (flawless) /Black=0.07 (flawless)} 1/2-1/2

[Event "Swietokrzyskie GM Chess-ch 2022"]
[Site "Zagnansk"]
[Date "2022.05.03"]
[Round "5.2"]
[White "Stoyanov, IM Tsvetan"]
[Black "Pacan-Milej, FM Kosma"]
[Result "1/2-1/2"]
[ECO "B17"]
[WhiteElo "2424"]
[BlackElo "2404"]
[Annotator "TA"]
[PlyCount "120"]
[EventDate "2022.04.29"]
[EventCountry "POL"]
[SourceTitle "playchess.com"]
[Source "ChessBase"]
[SourceQuality "1"]
[TimeControl "40/5400+30:1800+30"]

{[%evp 20,120,52,28,4,0,0,0,0,16,4,18,69,50,115,99,113,108,126,130,136,129,212,206,202,208,210,191,191,0,184,0,192,22,22,31,38,26,23,0,0,0,0,0,0,0,6,0,0,0,0,-14,0,0,0,0,0,0,0,-8,-8,-37,-16,-57,0,0,0,0,120,129,192,0,0,-48,-50,-51,-48,-47,0,-29,0,0,0,-26,0,0,0,0,0,0,0,0,0,0,0,0,0,0,0,0,0,0,0]} 1. e4 {[%emt 0:00:03]} c6 {[%emt 0:00:10]} 2. d4 {[%emt 0:00:19]} d5 {[%emt 0:00:10]} 3. Nc3 {[%emt 0:00:16][%cal Bb1c3,Bc3e4,Be4g5][%mdl 32]} dxe4 {[%emt 0:00:07]} 4. Nxe4 {[%emt 0:00:06]} Nd7 {[%emt 0:00:30]} 5. Ng5 {[%emt 0:01:44]} Ngf6 {[%emt 0:01:23]} 6. Bd3 {[%emt 0:00:26]} e6 {[%emt 0:02:23]} 7. N1f3 {[%emt 0:00:33]} Bd6 {[%emt 0:00:51]} 8. Qe2 {[%emt 0:00:33]} h6 {[%emt 0:01:09]} 9. Ne4 {[%emt 0:00:16]} Nxe4 {[%emt 0:00:19]} 10. Qxe4 {[%emt 0:00:42]} c5 {[%emt 0:00:22]} 11. Bd2 {[%emt 0:14:21]} Qc7 {[%emt 0:21:15] B17: Caro-Kann: Modern Line (4...Nd7).} 12. Qe2 {[%emt 0:05:10]} a6 {[%emt 0:29:50]} 13. O-O-O {[%emt 0:14:52]} cxd4 {[%emt 0:08:00]} 14. Nxd4 {[%emt 0:00:02]} Nc5 {[%emt 0:01:07] [#]} 15. Nb3 $146 {[%emt 0:08:20]} ({Predecessor:} 15. Rhe1 Nxd3+ 16. Qxd3 O-O 17. g4 Rd8 18. Qe4 Qc4 19. Ba5 Re8 20. Kb1 Bxh2 21. g5 hxg5 {1-0 (30) Gross,D (2360)-Stohl,I (2580) Pribram 1997}) 15... Nxb3+ {[%emt 0:14:59]} (15... Nxd3+ $11 16. Qxd3 Be7) 16. axb3 $14 {[%emt 0:00:17]} e5 {[%emt 0:00:58]} ({Black should try} 16... Bf4 $14) 17. Rhe1 {[%emt 0:07:44]} Be6 {[%emt 0:10:14]} 18. Bc3 {[%emt 0:01:57]} O-O-O {[%emt 0:00:53] [#]} 19. Bxa6 $1 {[%emt 0:20:47][%mdl 512]} bxa6 {[%emt 0:01:31]} 20. Qxa6+ {[%emt 0:00:01]} Kb8 {[%emt 0:00:06]} (20... Kd7 $16) 21. Ba5 $18 {[%emt 0:01:23][%mdl 1024] White has strong compensation.} Qe7 {[%emt 0:00:25]} 22. Qb6+ {[%emt 0:01:33]} (22. Bxd8 $6 Rxd8 23. Qb6+ Kc8 $14) 22... Ka8 {[%emt 0:02:06]} 23. Qc6+ {[%emt 0:00:40]} Kb8 {[%emt 0:00:23]} 24. Qb6+ {[%emt 0:15:21]} (24. Bxd8 $6 Rxd8 25. Qb6+ Kc8 $14) 24... Ka8 {[%emt 0:00:06]} 25. Qc6+ {[%emt 0:03:19]} Kb8 {[%emt 0:00:05] [#]} 26. Bxd8 $2 {[%emt 0:00:31]} (26. Rd3 $1 $18) 26... Rxd8 $11 {[%emt 0:00:04]} 27. Qb6+ {[%emt 0:01:13]} Kc8 {[%emt 0:01:02]} 28. Re3 {[%emt 0:00:23] Threatens to win with Qa5.} Bc7 {[%emt 0:00:40]} 29. Qa6+ {[%emt 0:00:40]} Kb8 {[%emt 0:00:03]} 30. Qb5+ {[%emt 0:00:48]} Kc8 $1 {[%emt 0:00:28]} 31. Qa6+ {[%emt 0:00:00]} Kb8 {[%emt 0:00:04]} 32. Rxd8+ {[%emt 0:01:19]} Qxd8 {[%emt 0:00:05]} 33. Re4 {[%emt 0:00:17] Dancing on a razor blade.} Qd6 {[%emt 0:00:43] Prevents Rb4+.} (33... Qg5+ $2 34. f4 Qe7 35. Qb5+ (35. fxe5 Qc5 $11) (35. Ra4 Bd5 $11) 35... Kc8 36. Ra4 $18 (36. fxe5 Qd7 $14)) 34. Qb5+ {[%emt 0:00:01]} Kc8 {[%emt 0:01:07]} 35. Ra4 {[%emt 0:00:37]} Bd7 {[%emt 0:00:31] Against Qe8+} 36. Ra8+ Bb8 {[%emt 0:00:03]} 37. Qe2 {[%emt 0:01:24]} Kb7 {[%emt 0:01:46]} 38. Ra3 {[%emt 0:00:40]} f5 {[%emt 0:00:51]} 39. b4 {[%emt 0:00:28]} e4 {[%emt 0:01:32]} 40. g3 {[%emt 0:00:00]} Ba7 {[%emt 0:00:00]} 41. Kb1 {[%emt 0:23:39]} Qb6 {[%emt 0:17:22]} (41... Be6 $15) 42. Qd2 {[%emt 0:06:27]} Qe6 {[%emt 0:10:13]} 43. c4 {[%emt 0:01:05]} e3 {[%emt 0:03:33]} (43... g5 $11 {keeps the balance.}) 44. fxe3 $16 {[%emt 0:00:18]} Qe4+ {[%emt 0:01:58]} (44... Bb6 $16 45. Qd3 (45. c5 Bc7 $16) 45... Bc6) 45. Ka1 $2 {[%emt 0:00:26]} (45. Qd3 $18) 45... Be6 $11 {[%emt 0:00:09]} 46. Qc3 {[%emt 0:01:43]} (46. Rxa7+ $11 Kxa7 47. b3) 46... Qxc4 $15 {[%emt 0:00:17]} 47. Qxg7+ {[%emt 0:00:37]} Bf7 {[%emt 0:00:02][%cal Rc4c1]} 48. b3 {[%emt 0:00:26]} Qd5 {[%emt 0:01:41]} (48... Qe6 $1 $15) 49. Qf6 {[%emt 0:00:34] Strongly threatening Qa6+.} ({Much worse is} 49. Qf8 Qe5+ 50. Kb1 Qe6 $15) 49... Bb6 {[%emt 0:00:51]} 50. Qe7+ {[%emt 0:00:27]} Bc7 {[%emt 0:00:19] A strong pair of Bishops.} 51. b5 {[%emt 0:00:33]} Qd1+ {[%emt 0:00:41]} 52. Kb2 {[%emt 0:00:28] The position is equal.} Qd2+ {[%emt 0:00:17]} 53. Kb1 {[%emt 0:00:27]} Bd5 {[%emt 0:00:43]} 54. Ra7+ $1 {[%emt 0:00:30]} Kxa7 {[%emt 0:00:04]} 55. Qxc7+ {[%emt 0:00:02]} Bb7 {[%emt 0:00:33]} (55... Ka8 $5 56. Qc8+ Ka7 57. Qc7+ Bb7 $11) 56. Qc5+ {[%emt 0:00:49]} Kb8 {[%emt 0:00:37] Hoping for ...Be4+.} 57. Qe5+ {[%emt 0:00:40]} Ka8 {[%emt 0:00:46]} 58. Qa1+ {[%emt 0:00:13]} Kb8 {[%emt 0:00:06][%cal Rb7e4]} 59. Qe5+ {[%emt 0:00:02]} Ka8 {[%emt 0:00:12] ( -> ...Be4+)} 60. Qa1+ {[%emt 0:00:01]} Kb8 {[%emt 0:00:06] Weighted Error Value: White=0.23 (precise) /Black=0.16 (very precise)} 1/2-1/2